bitfinex-derivatives/quotes_ETHF0:USTF0_20251117
["timestamp","ask_amount","ask_price","bid_price","bid_amount"]
[1763386237279,0.00278345,3151.7,3151.3,0.51445]
[1763386237578,0.00278345,3151.7,3151.2,0.00248574]
[1763386237982,1.1736,3151.3,3151.2,0.00248574]
[1763386238276,1.1736,3151.2,3151.1,0.00475549]
[1763386239177,7.1736,3151.2,3149.9,3.2078]
[1763386239379,3.2078,3150.5,3149.9,3.72516455]
[1763386239572,3.2078,3150.5,3149.9,3.21048455]
[1763386240080,3.21255549,3150.5,3150.1,0.51465]
[1763386240277,3.21255549,3150.5,3149.9,3.21368179]
[1763386240278,0.00475549,3150.5,3150.0,0.51467]
[1763386240475,0.00475549,3150.5,3149.9,3.72836179]
[1763386240678,0.00475549,3150.5,3149.9,3.21368179]
[1763386241074,0.00475549,3150.5,3150.3,0.51462]
[1763386241378,3.8494,3151.4,3150.9,1.1443]
[1763386241576,3.8494,3151.8,3151.1,3.2078]
[1763386241780,3.8494,3151.8,3151.5,0.51441]
[1763386242278,3.8494,3151.8,3151.1,3.2078]
[1763386242279,0.6416,3151.8,3151.6,0.5144]
[1763386242482,0.00475549,3151.9,3151.6,0.5144]
[1763386243480,0.00475549,3151.9,3151.6,3.7222]
[1763386243677,0.00475549,3151.9,3151.6,9.7222]
[1763386243881,0.00475549,3151.9,3151.8,0.51437]
[1763386244077,3.2078,3152.2,3151.6,3.2078]
[1763386244283,3.2078,3153.4,3152.8,0.51421]
[1763386244485,3.2078,3153.4,3153.2,0.51414]
[1763386244879,3.21085094,3153.4,3153.2,0.51657011]
[1763386246879,0.00305094,3153.4,3153.2,0.51657011]
[1763386247286,0.51716094,3153.4,3153.2,3.011e-05]
[1763386247489,0.6416,3152.8,3151.8,3.2078]
[1763386247677,0.6416,3152.8,3152.6,0.51424]
[1763386248285,3.2078,3153.3,3152.7,3.2078]
[1763386248484,3.2078,3153.3,3153.1,0.51415]
[1763386248982,0.00475549,3153.6,3153.1,0.51415]
[1763386249185,0.05515917,3156.6,3152.7,3.21023918]
[1763386249186,0.78380738,3154.1,3154.0,0.51401]
[1763386249382,4.31903791,3154.7,3154.0,3.72181]
[1763386249583,3.2078,3154.7,3154.0,3.72181]
[1763386250091,0.64471292,3154.2,3154.0,3.72181]
[1763386250389,0.00311292,3154.2,3154.0,3.72181]
[1763386251892,0.83381292,3154.2,3154.0,3.7218]
[1763386252282,0.00311292,3154.2,3154.0,3.7218]
[1763386255390,0.83381292,3154.2,3154.0,3.7218]
[1763386255692,0.83381292,3154.2,3154.1,40.8]
[1763386255892,2.10481292,3154.2,3154.1,40.8]
[1763386256087,2.10481292,3154.2,3154.0,3.2078]
[1763386256393,0.83381292,3154.2,3154.0,3.72181]
[1763386256594,0.83381292,3154.2,3154.1,0.514]
[1763386256793,0.83381292,3154.2,3154.0,3.2078]
[1763386257490,0.83381292,3154.2,3154.1,0.514]
[1763386258087,0.00311292,3154.2,3154.1,0.514]
[1763386258785,0.6416,3154.9,3154.8,0.51388]
[1763386258988,0.6416,3154.9,3154.8,3.72168]
[1763386259797,0.64510498,3154.9,3154.8,3.72168]
[1763386260287,1.271,3154.5,3154.4,3.2078]
[1763386260496,1.271,3153.9,3153.8,0.00475549]
[1763386260684,3.2078,3154.1,3153.1,3.2078]
[1763386260884,3.2078,3154.1,3152.7,0.00243918]
[1763386260885,0.8307,3152.8,3152.7,3.21023918]
[1763386261189,0.8307,3152.8,3152.7,3.72446918]
[1763386261387,0.8307,3153.5,3153.1,0.51415]
[1763386261594,0.8307,3153.5,3153.3,3.2078]
[1763386261795,0.8307,3153.5,3153.4,0.51411]
[1763386262689,0.8307,3153.5,3153.3,3.72193]
[1763386262899,0.8307,3153.5,3153.4,0.51411]
[1763386263194,0.8307,3153.5,3153.3,3.2078]
[1763386263391,3.2078,3153.4,3153.1,0.00475549]
[1763386264593,0.8307,3152.1,3151.9,0.51435]
[1763386264990,0.8307,3152.8,3151.8,3.2078]
[1763386265186,0.8307,3152.8,3152.6,0.51424]
[1763386265694,0.83455337,3152.8,3152.6,0.00374591]
[1763386266894,0.83455337,3152.8,3152.6,0.51797591]
[1763386267086,0.83455337,3152.8,3152.6,0.00374591]
[1763386267401,0.83455337,3152.8,3152.7,0.51423]
[1763386267900,0.83455337,3152.8,3152.6,0.00374591]
[1763386268199,3.2078,3152.7,3152.4,0.00475549]
[1763386268799,0.83455337,3152.8,3152.4,0.00475549]
[1763386269000,0.8307,3152.1,3151.9,3.2078]
[1763386269307,0.8307,3152.1,3151.9,0.00272369]
[1763386269793,0.8307,3152.1,3151.9,3.72486369]
[1763386269999,0.8307,3152.1,3152.0,0.51434]
[1763386271301,0.8307,3152.1,3151.9,3.21052369]
[1763386271492,0.8307,3152.1,3151.9,0.00272369]
[1763386272393,0.8307,3152.1,3151.9,0.51707369]
[1763386272595,0.8307,3152.1,3152.0,0.51434]
[1763386274599,0.83455337,3152.8,3152.6,0.51423]
[1763386274904,2.10555337,3152.8,3152.3,3.2078]
[1763386275093,2.10555337,3152.8,3151.9,3.21052369]
[1763386275094,1.271,3152.0,3151.9,3.21052369]
[1763386275505,1.271,3152.0,3151.9,0.00272369]
[1763386276599,0.8307,3152.1,3151.5,3.2078]
[1763386276600,1.271,3151.6,3151.5,3.2078]
[1763386277409,1.271,3151.6,3151.5,3.72492127]
[1763386277798,0.00475549,3151.9,3151.7,0.51438]
[1763386278107,1.2036,3151.6,3151.5,3.21050127]
[1763386279398,1.9159,3150.6,3149.6,11.427]
[1763386279594,3.2078,3150.2,3149.8,0.5147]
[1763386279803,3.2078,3150.0,3149.8,0.5147]
[1763386280009,0.7123,3150.0,3149.5,0.51474]
[1763386280205,0.7123,3150.0,3149.1,40.8]
[1763386280206,3.2078,3149.6,3149.4,0.51476]
[1763386280415,3.21121327,3149.6,3149.4,0.00376574]
[1763386280708,3.21121327,3149.6,3149.4,0.51852574]
[1763386281500,3.21121327,3149.6,3149.4,0.00376574]
[1763386282400,0.00341327,3149.6,3149.4,0.51852574]
[1763386282603,0.00341327,3149.6,3149.4,0.00376574]
[1763386282796,3.2078,3149.5,3149.4,0.00376574]
[1763386282995,0.00341327,3149.6,3149.4,0.00376574]
[1763386283602,4.4114,3149.5,3149.4,0.00376574]
[1763386284009,4.4114,3149.5,3148.6,3.2078]
[1763386284010,4.4114,3149.5,3148.8,0.51486]
[1763386284207,4.4114,3149.5,3148.8,41.31486]
[1763386284911,4.4114,3149.5,3149.0,0.51483]
[1763386285111,4.4114,3149.5,3148.9,0.51484]
[1763386285610,4.4114,3149.5,3148.8,0.00279226]
[1763386285809,4.4114,3149.5,3149.0,0.51483]
[1763386286310,4.4114,3149.5,3148.9,0.51485]
[1763386287011,0.7942,3149.4,3148.8,0.00279226]
[1763386287316,1.3841,3148.9,3148.8,0.00279226]
[1763386287812,3.2078,3149.1,3146.4,0.308]
[1763386287813,1.3841,3147.1,3146.4,0.8018]
[1763386288001,0.7942,3146.4,3145.4,2.23457126]
[1763386288205,0.7942,3146.4,3145.2,0.8018]
[1763386288206,3.2078,3145.5,3145.2,0.8018]
[1763386288412,3.2078,3145.3,3144.2,3.2078]
[1763386288622,3.2078,3145.1,3144.0,4.0096]
[1763386288915,3.2078,3144.7,3144.0,4.01269517]
[1763386289110,3.2078,3144.7,3144.0,11.23132517]
[1763386289417,3.21642839,3145.1,3144.3,0.51558]
[1763386289712,3.21642839,3145.1,3144.6,0.51554]
[1763386289908,3.21642839,3145.1,3144.5,0.51556]
[1763386290210,3.21642839,3145.1,3144.4,3.2078]
[1763386290916,3.21642839,3145.1,3144.6,0.51554]
[1763386291215,3.21642839,3145.1,3144.4,3.2078]
[1763386291216,3.2078,3144.7,3144.0,0.80489517]
[1763386291514,3.2078,3145.0,3144.3,3.2078]
[1763386291710,3.2078,3145.0,3144.5,0.51557]
[1763386291914,3.2078,3145.0,3144.3,3.7234]
[1763386292110,3.2078,3145.0,3144.3,3.2078]
[1763386292309,3.2078,3144.6,3144.0,0.00309517]
[1763386292516,3.2078,3144.5,3144.0,1.32054517]
[1763386292716,3.2078,3144.6,3144.0,41.60489517]
[1763386292912,3.2078,3144.6,3144.0,0.80489517]
[1763386293212,3.2078,3144.1,3144.0,0.00309517]
[1763386293820,3.2078,3144.1,3143.4,0.8018]
[1763386294119,3.2078,3144.1,3143.4,41.6018]
[1763386294318,3.2078,3144.1,3142.9,3.2078]
[1763386294620,3.2078,3144.1,3143.5,0.51572]
[1763386294806,3.2078,3144.1,3143.7,0.03575452]
[1763386295411,3.2078,3144.1,3144.0,0.8018]
[1763386295618,3.2078,3144.1,3143.9,0.51565]
[1763386296122,3.2078,3144.5,3144.1,0.51563]
[1763386296420,3.2078,3144.5,3144.0,0.8018]
[1763386297114,3.2078,3145.0,3144.4,3.2078]
[1763386297320,3.2078,3145.0,3144.8,1.3173]
[1763386298416,3.2078,3145.0,3144.8,0.8018]
[1763386299125,3.2078,3145.0,3144.8,1.3173]
[1763386299421,3.2078,3145.5,3145.0,0.51548]
[1763386299626,3.2078,3145.5,3145.1,0.51545]
[1763386300217,2.2078,3145.5,3144.9,3.2078]
[1763386300423,2.21543176,3145.5,3144.9,3.21257114]
[1763386300626,2.21543176,3145.5,3145.2,0.51545]
[1763386300924,0.00763176,3145.5,3144.9,3.21257114]
[1763386301325,0.00763176,3145.5,3145.2,0.51544]
[1763386301520,0.00763176,3145.5,3145.3,0.51542]
[1763386301722,0.00763176,3145.5,3144.9,3.21257114]
[1763386302124,0.00763176,3145.5,3145.0,40.8]
[1763386302422,0.00763176,3145.5,3144.9,3.21257114]
[1763386302627,0.00763176,3145.5,3145.3,0.51543]
[1763386302925,0.00763176,3145.5,3145.3,41.31543]
[1763386303932,0.00763176,3145.5,3145.3,44.52323]
[1763386304330,3.2078,3146.7,3146.5,0.51523]
[1763386304520,3.2078,3147.1,3146.3,3.2078]
[1763386304712,3.2078,3147.5,3146.9,0.51516]
[1763386304916,3.2078,3147.5,3146.7,3.2078]
[1763386305123,3.2078,3147.5,3146.9,0.51516]
[1763386305329,0.00477114,3147.4,3147.1,0.51513]
[1763386305528,0.00477114,3147.4,3147.3,0.51511]
[1763386305733,3.2078,3148.1,3147.2,4.0096]
[1763386306028,3.2078,3148.1,3147.9,0.515]
[1763386306229,3.2078,3148.6,3148.3,0.51494]
[1763386306522,3.2078,3148.6,3148.1,0.51497]
[1763386306725,3.2078,3148.6,3148.0,40.8]
[1763386306726,3.21043935,3148.6,3148.0,40.80477114]
[1763386307137,3.21043935,3148.6,3148.4,0.51492]
[1763386307313,0.00263935,3148.6,3148.4,0.51492]
[1763386307514,0.00263935,3148.6,3148.4,3.69092]
[1763386307714,0.00263935,3148.6,3148.5,3.2078]
[1763386307930,3.21043935,3148.6,3148.0,41.31975114]
[1763386308124,3.21043935,3148.6,3148.0,40.80477114]
[1763386308526,3.21043935,3148.6,3148.4,0.51492]
[1763386309428,6.0,3148.5,3148.0,0.00477114]
[1763386309724,3.2078,3148.1,3148.0,0.00477114]
[1763386310821,3.21043935,3148.6,3148.0,0.51975114]
[1763386311023,3.21043935,3148.6,3148.2,0.51495]
[1763386311318,3.21043935,3148.6,3148.0,0.00477114]
[1763386311319,3.21043935,3148.6,3148.4,0.51493]
[1763386311514,3.21043935,3148.6,3148.0,0.00477114]
[1763386311729,3.21043935,3148.6,3148.2,0.51496]
[1763386311931,3.21043935,3148.6,3148.3,0.51493]
[1763386312130,3.21043935,3148.6,3148.1,40.8]
[1763386312330,3.21043935,3148.6,3148.4,0.51492]
[1763386312520,3.21043935,3148.6,3148.1,41.31497]
[1763386312923,0.00263935,3148.6,3148.1,40.8]
[1763386313332,0.00263935,3148.6,3148.4,3.2078]
[1763386313528,0.00263935,3148.6,3148.4,3.72272]
[1763386313830,0.00263935,3148.6,3148.4,3.2078]
[1763386314235,0.00263935,3148.6,3148.4,3.72272]
[1763386314533,0.00263935,3148.6,3148.1,40.8]
[1763386314534,3.2078,3148.5,3148.1,40.8]
[1763386315023,3.2078,3148.5,3148.1,41.31497]
[1763386315224,3.2078,3148.5,3148.3,0.51494]
[1763386316426,3.2078,3148.5,3148.0,40.80477114]
[1763386316632,3.2078,3148.5,3148.2,0.51496]
[1763386316832,3.2078,3148.5,3148.0,40.80477114]
[1763386317033,3.2078,3148.5,3148.0,41.31975114]
[1763386317235,3.2078,3148.5,3148.0,0.00477114]
[1763386317422,0.82736414,3148.4,3148.0,0.00477114]
[1763386318036,3.2078,3148.1,3148.0,0.00477114]
[1763386318331,4.03516414,3148.1,3148.0,0.00477114]
[1763386318629,4.03516414,3148.1,3147.3,3.2078]
[1763386318836,3.2078,3147.5,3147.1,0.51514]
[1763386319031,3.2078,3147.5,3146.9,3.2078]
[1763386319230,0.7669,3147.9,3146.9,3.2078]
[1763386319231,0.7669,3147.9,3147.6,0.51504]
[1763386319426,3.2078,3148.4,3147.4,3.2078]
[1763386319637,0.82731339,3148.3,3147.6,0.00477114]
[1763386320321,0.82731339,3148.3,3148.2,0.51496]
[1763386320534,3.2078,3148.4,3148.3,0.51494]
[1763386320831,4.03510156,3148.4,3148.3,0.51494]
[1763386321033,0.00263935,3148.6,3148.4,0.51491]
[1763386321335,0.00263935,3148.6,3148.5,0.51491]
[1763386321537,0.00263935,3148.6,3148.2,3.2078]
[1763386321831,3.2078,3148.4,3147.8,3.2078]
[1763386322136,3.2078,3148.4,3147.8,40.8]
[1763386322433,3.2078,3148.4,3147.7,3.2078]
[1763386322434,3.2078,3148.4,3148.1,0.51498]
[1763386322632,3.2078,3148.4,3147.7,3.2078]
[1763386322836,3.2078,3148.4,3148.3,0.51494]
[1763386323035,3.2078,3148.4,3147.7,44.0078]
[1763386323226,1.3117,3148.3,3148.2,0.51496]
[1763386323433,3.2078,3148.4,3148.3,0.51494]
[1763386323740,4.03558232,3148.4,3148.3,0.51494]
[1763386324327,0.00263935,3148.6,3148.5,0.51491]
[1763386324539,0.00263935,3148.6,3148.5,1.80411]
[1763386324739,3.2078,3149.4,3149.3,0.51478]
[1763386325040,3.2078,3150.2,3150.0,0.51466]
[1763386325826,3.21191942,3150.2,3150.0,0.00329424]
[1763386326028,3.21191942,3150.2,3150.0,0.51795424]
[1763386328441,3.21191942,3150.2,3150.0,1.28615424]
[1763386328643,0.00411942,3150.2,3150.0,1.28615424]
[1763386328844,3.2078,3151.2,3150.1,3.2078]
[1763386329139,3.2078,3151.2,3151.0,0.5145]
[1763386329340,3.2078,3152.0,3151.7,0.51439]
[1763386329548,0.7669,3152.1,3151.4,3.2078]
[1763386329847,0.77480401,3152.1,3151.4,3.21256333]
[1763386330135,0.00790401,3152.1,3151.4,3.98076333]
[1763386330342,0.00790401,3152.1,3151.9,0.51435]
[1763386330532,0.00790401,3152.1,3151.5,41.31441]
[1763386330735,0.00790401,3152.1,3151.7,0.51439]
[1763386331039,3.2078,3152.0,3151.5,40.8]
[1763386331246,3.2078,3151.6,3151.4,0.00476333]
[1763386333039,0.7669,3151.4,3150.6,40.8]
[1763386333250,3.2078,3151.1,3150.6,41.31457]
[1763386333430,3.2078,3150.7,3150.6,40.8]
[1763386333934,3.2078,3150.7,3150.0,3.97929424]
[1763386334132,3.2078,3150.7,3150.0,3.98405757]
[1763386334335,3.2078,3150.7,3150.1,40.8]
[1763386334530,3.2078,3151.1,3150.4,3.2078]
[1763386334934,3.2078,3151.1,3150.4,3.7224]
[1763386335444,3.9747,3150.7,3150.0,0.00805757]
[1763386335636,3.2078,3150.1,3150.0,0.00805757]
[1763386336046,0.7669,3150.0,3148.7,11.436]
[1763386336346,3.2078,3149.0,3148.7,11.436]
[1763386336640,3.2078,3149.0,3145.8,0.7682]
[1763386336641,0.79083267,3148.9,3148.2,40.8]
[1763386336845,0.79083267,3148.9,3147.6,3.2078]
[1763386336846,3.99863267,3148.9,3147.6,3.2078]
[1763386337143,0.00476333,3148.6,3148.4,0.51492]
[1763386338933,0.00476333,3148.6,3148.2,3.2078]
[1763386339134,3.2078,3148.5,3147.9,0.00476333]
[1763386339445,3.2078,3148.1,3147.9,0.00476333]
[1763386339838,3.2078,3148.1,3147.9,0.51976333]
[1763386340241,3.2078,3148.1,3147.9,0.00476333]
[1763386340940,3.2078,3148.1,3148.0,0.51499]
[1763386341145,0.00476333,3148.6,3148.4,0.51493]
[1763386341345,3.2078,3149.0,3148.8,0.51486]
[1763386341541,3.2078,3149.9,3149.4,0.51476]
[1763386341740,3.2078,3149.9,3149.5,0.51474]
[1763386342244,3.2078,3149.9,3148.9,3.2078]
[1763386342443,3.2078,3149.4,3148.5,3.2078]
[1763386342645,3.2078,3149.4,3149.2,0.5148]
[1763386343250,3.2078,3149.4,3149.1,0.51481]
[1763386343545,3.2078,3149.4,3148.9,3.2078]
[1763386344056,3.2078,3149.0,3147.9,3.68726333]
[1763386344545,3.2078,3148.5,3147.9,0.00476333]
[1763386344735,3.2078,3148.5,3147.9,0.51977333]
[1763386344936,3.2078,3148.1,3147.9,0.00476333]
[1763386345538,3.2078,3148.1,3147.9,0.51976333]
[1763386345736,3.2078,3148.1,3147.9,0.00476333]
[1763386345936,3.2078,3148.1,3147.9,0.51976333]
[1763386346141,3.2078,3148.1,3147.9,0.00476333]
[1763386346448,0.00476333,3148.3,3148.0,0.51499]
[1763386346638,0.00476333,3148.3,3147.9,0.00476333]
[1763386347042,3.2078,3148.2,3147.9,0.00476333]
[1763386347446,0.00476333,3148.3,3147.9,0.00476333]
[1763386347656,0.6658,3148.0,3147.9,0.00476333]
[1763386347951,0.6658,3148.0,3147.1,0.51514]
[1763386348147,3.2078,3147.6,3146.9,3.2078]
[1763386348352,0.6658,3148.0,3146.6,0.51522]
[1763386348353,3.8831,3147.2,3146.6,0.51522]
[1763386348548,3.8831,3147.2,3146.7,0.5152]
[1763386348756,3.88669328,3147.2,3146.7,0.00401424]
[1763386348945,3.88669328,3147.2,3146.9,0.51517]
[1763386349251,3.88669328,3147.2,3146.8,0.51519]
[1763386349447,3.88669328,3147.2,3146.7,0.51921424]
[1763386349649,3.88669328,3147.2,3146.7,0.00401424]
[1763386350848,3.88669328,3147.2,3146.7,0.51922424]
[1763386351057,3.21139328,3147.2,3146.7,0.00401424]
[1763386351453,3.21139328,3147.2,3147.1,0.51514]
[1763386351852,0.00359328,3147.2,3147.1,0.51514]
[1763386352040,3.2078,3147.6,3147.5,0.51508]
[1763386352247,3.2078,3148.1,3148.0,0.51499]
[1763386352458,0.00476333,3148.3,3148.2,0.51496]
[1763386352645,3.21256333,3148.3,3148.0,0.51498]
[1763386352847,3.21256333,3148.3,3148.2,0.51496]
[1763386353057,3.21649417,3148.3,3148.2,0.51496]
[1763386353448,3.21649417,3148.3,3148.0,0.51499]
[1763386353649,3.21649417,3148.3,3148.2,0.51496]
[1763386353852,3.21649417,3148.3,3148.0,0.51498]
[1763386354051,3.21649417,3148.3,3148.1,0.51497]
[1763386354358,3.21649417,3148.3,3147.5,40.8]
[1763386354660,3.2078,3147.7,3147.3,0.51511]
[1763386355152,3.2078,3147.7,3146.8,0.51518]
[1763386355345,0.7089,3148.0,3146.7,0.00401424]
[1763386355346,3.2078,3147.3,3146.7,0.00401424]
[1763386355546,3.2078,3147.3,3147.0,0.51515]
[1763386355955,3.2078,3147.3,3146.9,0.51517]
[1763386356357,3.2078,3147.3,3146.8,0.51517]
[1763386356665,0.7089,3147.2,3146.7,0.00401424]
[1763386356851,3.2078,3146.9,3146.7,0.00401424]
[1763386357756,3.2078,3146.9,3146.8,0.51519]
[1763386359358,3.2078,3147.5,3147.3,0.5151]
[1763386359553,3.2078,3147.5,3146.7,3.21181424]
[1763386359762,3.2078,3147.5,3147.4,0.51509]
[1763386360457,3.2078,3147.5,3146.7,3.21181424]
[1763386360760,3.2078,3147.5,3147.4,0.51509]
[1763386361267,3.2078,3147.9,3147.7,0.51503]
[1763386361458,3.2078,3147.9,3147.2,3.2078]
[1763386361853,3.2078,3147.9,3146.7,0.00401424]
[1763386362054,3.2078,3147.5,3146.9,0.51517]
[1763386362260,3.2078,3147.5,3146.7,0.00401424]
[1763386362453,3.2078,3147.5,3147.0,0.51514]
[1763386362756,3.2078,3147.5,3146.8,0.51519]
[1763386362953,3.2078,3147.5,3146.7,0.00401424]
[1763386363153,3.2078,3147.5,3147.3,0.51509]
[1763386363653,3.2078,3147.5,3147.4,0.51509]
[1763386363859,3.2078,3147.5,3146.8,40.8]
[1763386363860,3.2078,3147.9,3147.7,0.51504]
[1763386364052,3.2078,3147.9,3147.8,0.51503]
[1763386364263,2.82623376,3147.9,3147.8,0.51503]
[1763386365054,2.82623376,3147.9,3147.2,3.2078]
[1763386365261,3.2078,3148.0,3147.2,3.2078]
[1763386365559,3.2078,3148.0,3147.8,0.51502]
[1763386365757,3.2078,3148.0,3147.9,0.51501]
[1763386366062,3.2078,3148.0,3147.7,0.51504]
[1763386366361,3.2078,3148.0,3147.9,0.51501]
[1763386366962,3.9167,3148.0,3147.2,11.1048]
[1763386367150,3.2078,3147.6,3147.5,0.51508]
[1763386367464,3.2078,3148.1,3147.8,0.51501]
[1763386367964,3.2078,3148.1,3148.0,0.51499]
[1763386368260,0.00869417,3148.3,3148.2,0.51496]
[1763386368455,0.7089,3150.4,3149.5,0.51475]
[1763386368659,0.7089,3150.4,3148.6,3.8124]
[1763386368660,3.8831,3149.6,3148.6,3.8124]
[1763386369052,3.8831,3149.6,3149.5,0.51475]
[1763386369255,3.8831,3149.6,3149.0,0.51482]
[1763386369452,3.89051553,3149.6,3149.3,0.51477]
[1763386369965,3.89051553,3149.6,3149.4,0.51476]
[1763386370155,3.89051553,3149.6,3149.0,0.00844714]
[1763386370356,3.89051553,3149.6,3149.5,0.51475]
[1763386370564,3.89051553,3149.6,3149.0,0.00844714]
[1763386371262,3.89051553,3149.6,3149.5,0.51475]
[1763386371865,3.21521553,3149.6,3149.5,0.51475]
[1763386372055,3.21521553,3149.6,3149.0,0.00844714]
[1763386372259,3.21521553,3149.6,3149.4,0.51476]
[1763386372466,3.21521553,3149.6,3149.5,0.51475]
[1763386372666,3.89821553,3149.6,3149.0,0.00844714]
[1763386373364,3.89821553,3149.6,3149.3,0.51478]
[1763386373767,3.21521553,3149.6,3149.5,0.51475]
[1763386374067,0.00741553,3149.6,3149.5,0.51475]
[1763386374263,3.2078,3150.1,3149.3,3.2078]
[1763386374264,3.2078,3150.1,3150.0,0.51467]
[1763386374561,3.2078,3150.1,3149.3,0.6312]
[1763386374966,3.2078,3150.1,3150.0,0.51467]
[1763386375356,3.21071711,3150.1,3150.0,0.51467]
[1763386377472,3.21071711,3150.1,3149.4,40.8]
[1763386377662,3.21071711,3150.1,3149.7,0.51471]
[1763386377963,3.21071711,3150.1,3149.4,40.8]
[1763386378370,3.21071711,3150.1,3149.9,0.51467]
[1763386378670,3.21071711,3150.1,3150.0,0.51467]
[1763386379064,3.21071711,3150.1,3149.3,3.2078]
[1763386379065,0.683,3150.0,3149.3,3.2078]
[1763386379270,3.2078,3149.5,3149.0,0.00844714]
[1763386379562,3.2078,3149.1,3149.0,0.00844714]
[1763386380765,3.2078,3149.5,3149.0,0.00844714]
[1763386380961,0.683,3149.3,3149.0,0.00844714]
[1763386381160,3.2078,3149.1,3149.0,0.52327714]
[1763386381362,3.2078,3149.1,3149.0,0.00844714]
[1763386382862,3.2078,3149.1,3149.0,0.52327714]
[1763386383072,3.2078,3149.1,3149.0,0.00844714]
[1763386383258,0.683,3149.3,3149.2,0.5148]
[1763386383458,0.683,3149.3,3149.0,0.00844714]
[1763386383662,3.2078,3149.1,3149.0,0.00844714]
[1763386383865,0.683,3149.3,3149.1,0.5148]
[1763386384065,0.683,3149.3,3149.0,0.00844714]
[1763386384368,3.2078,3149.1,3149.0,0.00844714]
[1763386384573,3.2078,3149.1,3149.0,0.52327714]
[1763386384763,3.2078,3149.9,3149.0,6.00844714]
[1763386384964,3.2078,3149.9,3149.8,0.5147]
[1763386385771,3.2078,3149.9,3149.5,0.51474]
[1763386385975,3.2078,3149.9,3149.3,40.8]
[1763386386162,3.2078,3149.8,3149.0,0.00844714]
[1763386386470,0.683,3150.0,3149.0,0.00844714]
[1763386386471,0.683,3150.0,3149.2,3.2078]
[1763386386672,0.683,3150.0,3149.2,44.0078]
[1763386387171,0.683,3150.0,3149.8,0.5147]
[1763386387572,0.683,3150.0,3149.4,0.51475]
[1763386387774,0.683,3149.3,3149.0,0.00844714]
[1763386388091,0.683,3149.3,3147.4,3.2078]
[1763386388092,3.2078,3149.1,3147.4,3.2078]
[1763386388375,3.2078,3148.0,3147.7,0.51504]
[1763386388972,3.2078,3148.0,3147.8,0.51502]
[1763386389568,3.2078,3148.0,3147.7,0.00361085]
[1763386389873,3.2078,3148.0,3147.9,0.51501]
[1763386390268,3.2078,3148.0,3147.7,0.00361085]
[1763386390866,3.2078,3148.0,3147.8,0.51501]
[1763386391072,0.00476333,3148.2,3148.0,0.51498]
[1763386391675,3.2078,3148.5,3148.4,0.51493]
[1763386392272,3.2078,3148.5,3147.8,40.8]
[1763386392475,3.2078,3148.5,3147.7,0.00361085]
[1763386392476,3.2078,3147.9,3147.7,0.51865085]
[1763386392870,3.2078,3147.9,3147.7,0.00361085]
[1763386393376,3.8908,3147.9,3147.7,0.00361085]
[1763386393575,3.8908,3147.9,3147.5,0.00476333]
[1763386393777,3.8908,3147.9,3147.0,0.51516]
[1763386393974,3.2078,3147.2,3147.0,0.51516]
[1763386394172,3.2078,3147.2,3147.1,0.51514]
[1763386394477,3.2078,3147.7,3146.8,40.8]
[1763386394680,3.21054923,3147.7,3147.3,0.5151]
[1763386394880,3.21054923,3147.7,3147.1,3.2078]
[1763386395182,3.2078,3147.3,3147.2,0.51512]
[1763386395578,0.683,3147.2,3147.1,0.51514]
[1763386395878,3.2078,3147.3,3147.2,0.51512]
[1763386396376,3.2078,3147.3,3146.9,0.00476333]
[1763386396578,0.00274923,3147.7,3146.9,0.00476333]
[1763386396579,3.21054923,3147.7,3147.2,0.51512]
[1763386396969,3.21054923,3147.7,3147.1,0.51514]
[1763386397174,3.21054923,3147.7,3147.3,0.51511]
[1763386397369,3.21054923,3147.7,3147.6,0.51506]
[1763386397883,3.21054923,3147.7,3147.5,0.51508]
[1763386398074,4.27954923,3147.7,3147.6,0.51506]
[1763386398274,3.21054923,3147.7,3147.6,0.51506]
[1763386399283,0.00274923,3147.7,3147.6,10.72726]
[1763386399482,0.00476333,3148.5,3148.4,1.55033]
[1763386399985,0.00476333,3148.5,3148.4,41.31493]
[1763386400485,0.00733842,3148.5,3148.4,41.31493]
[1763386400673,4.24443842,3148.5,3148.4,40.8]
[1763386400875,1.0293,3148.1,3148.0,0.51499]
[1763386401081,3.21513842,3148.5,3148.2,0.51496]
[1763386401383,3.21513842,3148.5,3148.4,1.45073]
[1763386401684,0.00733842,3148.5,3148.4,1.45073]
[1763386401886,0.00733842,3148.5,3148.4,0.51493]
[1763386402384,0.00733842,3148.5,3148.4,1.45073]
[1763386402573,0.00733842,3148.5,3148.4,42.25073]
[1763386402882,3.2078,3149.0,3148.9,1.45065]
[1763386403289,3.2078,3149.9,3149.4,0.51476]
[1763386403479,4.83334545,3151.3,3149.4,0.51476]
[1763386403480,3.2078,3150.3,3149.8,1.4505]
[1763386403687,3.2078,3150.3,3150.2,0.51463]
[1763386403884,3.2078,3150.8,3150.6,0.51457]
[1763386404080,3.2078,3150.8,3149.8,3.2078]
[1763386404283,3.21038171,3150.8,3150.6,0.51456]
[1763386404780,0.5617,3150.7,3150.1,40.8]
[1763386405476,3.21038171,3150.8,3150.1,40.8]
[1763386405678,3.21038171,3150.8,3150.7,0.51455]
[1763386405878,0.00258171,3150.8,3150.7,4.19105]
[1763386406078,3.2078,3152.0,3151.9,0.51436]
[1763386406289,3.2078,3152.6,3151.9,3.2078]
[1763386406482,3.2078,3152.6,3151.9,44.0078]
[1763386407079,3.21593828,3152.6,3152.4,0.51427]
[1763386407282,3.21593828,3152.6,3152.4,0.51759201]
[1763386407882,3.21593828,3152.6,3152.5,3.2078]
[1763386407883,0.00813828,3152.6,3152.5,3.2078]
[1763386409001,3.2078,3153.2,3153.0,0.51416]
[1763386409181,3.2078,3153.2,3152.6,0.51424]
[1763386409377,3.2078,3153.2,3152.5,3.2078]
[1763386409378,3.2078,3153.2,3152.7,0.51421]
[1763386409580,3.2078,3154.1,3152.9,3.2078]
[1763386409794,0.5617,3154.4,3153.7,3.72185]
[1763386409990,0.56778598,3154.4,3153.8,0.51404]